bitfinex/quotes_ETHUSD_20250814
["timestamp","ask_amount","ask_price","bid_price","bid_amount"]
[1755191560880,5.303,4525.3,4522.8,0.001]
[1755191560881,4.051,4525.1,4522.8,0.001]
[1755191561063,4.051,4525.1,4522.9,0.482]
[1755191561264,5.8024,4525.3,4524.8,2.21001262]
[1755191561265,9.353,4525.3,4524.8,2.21001262]
[1755191561492,9.353,4525.3,4523.8,5.21053096]
[1755191561702,9.353,4525.3,4523.9,0.5692531]
[1755191562011,9.353,4525.3,4524.9,2.20998084]
[1755191562309,0.9409,4525.2,4522.8,0.001]
[1755191562507,0.9409,4525.2,4524.1,2.21034743]
[1755191562714,2.21010596,4524.7,4523.4,2.21067979]
[1755191562876,2.21010596,4524.7,4523.3,0.01]
[1755191562877,0.55,4524.5,4523.3,0.01]
[1755191563073,0.9409,4524.6,4523.3,0.01]
[1755191563074,0.4415,4524.6,4523.3,0.01]
[1755191563308,4.048,4524.5,4523.8,0.1104]
[1755191563576,4.048,4524.5,4523.1,0.1104]
[1755191563577,0.1104,4523.7,4523.1,0.1104]
[1755191563771,0.1104,4523.9,4523.2,2.21082419]
[1755191563972,0.1104,4523.9,4523.8,0.001]
[1755191564176,0.5519,4523.9,4523.8,0.001]
[1755191564378,0.1104,4523.9,4523.8,0.001]
[1755191564586,4.052,4524.1,4523.8,0.001]
[1755191564915,0.4415,4524.5,4523.9,2.2104821]
[1755191565113,0.4415,4524.5,4524.1,0.1104]
[1755191565114,4.049,4524.4,4524.1,0.1104]
[1755191565620,0.55,4524.0,4523.8,0.001]
[1755191565826,4.5999,4523.9,4523.8,0.001]
[1755191566124,0.4994,4524.5,4523.8,0.001]
[1755191566125,0.1104,4524.4,4523.8,0.001]
[1755191566328,4.047,4524.4,4524.1,2.21036194]
[1755191566508,0.55,4525.1,4523.8,0.001]
[1755191566509,4.046,4525.1,4523.8,0.001]
[1755191566672,4.046,4525.1,4524.3,2.32068136]
[1755191566873,4.046,4525.1,4524.3,0.1104]
[1755191567136,0.1104,4525.2,4524.3,0.1104]
[1755191567275,5.303,4525.3,4525.1,0.1104]
[1755191568111,5.303,4525.3,4525.1,2.32029056]
[1755191568321,5.303,4525.3,4525.1,0.1104]
[1755191568732,0.1104,4525.8,4525.1,0.1104]
[1755191569016,0.55,4526.2,4525.2,0.1104]
[1755191569017,0.1104,4526.2,4525.2,0.1104]
[1755191569229,0.1104,4526.2,4525.6,0.1104]
[1755191569795,0.1104,4526.2,4524.5,0.482]
[1755191569796,0.55,4526.1,4524.7,2.21008106]
[1755191570018,0.5519,4526.2,4525.3,0.1104]
[1755191570203,0.55,4526.1,4525.3,0.1104]
[1755191570528,0.1104,4525.9,4525.4,2.2097323]
[1755191570710,0.55,4526.1,4525.4,2.2097323]
[1755191570711,0.1104,4526.1,4525.4,0.1104]
[1755191572024,0.1104,4526.1,4525.4,2.32014882]
[1755191572795,0.1104,4526.1,4525.5,2.20968485]
[1755191573096,0.55,4526.0,4525.4,0.1104]
[1755191574292,0.6604,4526.1,4525.4,0.1104]
[1755191574498,0.55,4526.0,4525.4,0.1104]
[1755191574816,0.55,4526.0,4525.5,2.20969063]
[1755191575016,0.55,4526.0,4525.4,0.1104]
[1755191575221,0.55,4526.0,4525.5,2.20969265]
[1755191575415,0.6604,4526.1,4525.6,2.2096485]
[1755191575616,4.1364,4526.2,4525.6,0.1104]
[1755191576604,4.1364,4526.2,4525.7,2.20960293]
[1755191576825,4.026,4526.2,4525.9,2.20949107]
[1755191577063,4.026,4526.2,4525.6,0.1104]
[1755191577352,4.4861,4526.2,4525.6,0.1104]
[1755191577760,4.4861,4526.2,4525.6,2.32004825]
[1755191577915,4.4861,4526.2,4525.6,0.1104]
[1755191577916,0.55,4526.1,4525.6,0.1104]
[1755191578116,0.55,4525.9,4524.9,2.20999161]
[1755191578342,0.55,4525.6,4525.1,0.1104]
[1755191578555,0.1104,4525.7,4524.5,2.21016005]
[1755191578556,4.9084,4525.5,4524.5,2.21016005]
[1755191578757,0.1104,4525.7,4524.9,0.1104]
[1755191578957,0.1104,4525.7,4525.5,2.20965719]
[1755191578958,3.987,4525.7,4525.5,2.20965719]
[1755191579161,3.987,4525.7,4525.4,0.1104]
[1755191579549,0.4601,4525.6,4524.8,2.20999803]
[1755191579751,0.4601,4525.6,4525.1,0.1104]
[1755191579752,0.9194,4525.6,4525.1,0.1104]
[1755191579959,3.984,4525.5,4525.1,0.1104]
[1755191580261,3.984,4525.6,4525.1,0.1104]
[1755191580568,4.4421,4525.5,4525.1,0.1104]
[1755191580876,0.4865,4526.3,4526.2,2.20935884]
[1755191580877,1e-08,4526.3,4526.2,2.20935884]
[1755191581025,1e-08,4526.3,4526.2,6.26355884]
[1755191581426,1e-08,4526.3,4526.2,0.1104]
[1755191581696,1e-08,4526.3,4526.2,2.31975884]
[1755191582368,1e-08,4526.3,4526.2,3.28565242]
[1755191582700,0.002,4527.0,4526.4,2.20926122]
[1755191582832,0.002,4527.0,4526.9,2.2090172]
[1755191583159,0.002,4527.0,4526.9,2.3194172]
[1755191583730,1e-08,4527.0,4526.9,3.28530737]
[1755191584127,1e-08,4527.1,4527.0,2.20896841]
[1755191584350,1e-08,4527.1,4527.0,4.22089612]
[1755191584953,1e-08,4527.1,4527.0,3.27709612]
[1755191585171,1e-08,4527.1,4527.0,2.20896841]
[1755191585471,1e-08,4527.1,4527.0,6.17485809]
[1755191585779,1e-08,4527.1,4527.0,6.47316841]
[1755191585964,1e-08,4527.1,4527.0,10.45816841]
[1755191586153,1e-08,4528.5,4527.4,5.20877324]
[1755191586355,1e-08,4528.5,4528.4,2.20828548]
[1755191586900,1e-08,4528.5,4528.4,5.78918548]
[1755191587049,0.002,4529.3,4528.8,2.20809044]
[1755191587468,0.002,4529.3,4528.8,2.31849044]
[1755191588352,0.002,4529.3,4528.8,6.71495595]
[1755191588353,1e-08,4528.9,4528.8,6.71495595]
[1755191588889,1e-08,4528.9,4528.8,6.72495595]
[1755191589408,1e-08,4528.9,4528.8,2.32849044]
[1755191589577,1e-08,4528.9,4528.8,2.79899044]
[1755191589772,1e-08,4528.9,4528.8,3.27229044]
[1755191590011,1e-08,4528.9,4528.8,2.32849044]
[1755191590874,1e-08,4528.9,4528.8,2.79899044]
[1755191591074,1e-08,4528.9,4528.8,10.75021408]
[1755191591577,1e-08,4528.9,4528.8,10.74021408]
[1755191592077,1e-08,4528.9,4528.8,10.26691408]
[1755191592906,1e-08,4528.9,4528.8,10.15651408]
[1755191593080,0.002,4529.8,4528.8,10.15651408]
[1755191593081,0.002,4529.8,4529.7,2.20765172]
[1755191593483,0.002,4529.8,4529.7,2.31805172]
[1755191594510,0.002,4529.8,4529.7,2.32805172]
[1755191594714,0.002,4529.8,4529.7,0.1204]
[1755191594889,0.4621,4529.8,4529.7,2.32805172]
[1755191595301,0.002,4529.8,4529.7,2.32805172]
[1755191597281,0.4621,4529.8,4529.7,2.32805172]
[1755191598224,0.9214,4529.8,4529.7,0.1104]
[1755191598722,0.9214,4529.8,4529.4,2.20776273]
[1755191598925,0.328226,4529.7,4529.6,2.20770045]
[1755191599096,0.002,4529.8,4529.6,2.20770045]
[1755191599097,0.002,4529.8,4529.7,2.20765172]
[1755191599790,0.002,4529.8,4529.6,0.1104]
[1755191599985,0.002,4529.8,4527.6,0.1104]
[1755191599986,3.55,4529.6,4527.6,0.1104]
[1755191600183,0.55,4528.6,4525.7,2.20960293]
[1755191600524,0.1104,4528.0,4527.3,0.1104]
[1755191600711,0.1104,4528.0,4527.5,2.20871058]
[1755191600885,0.1104,4528.0,4527.4,2.2087647]
[1755191601085,0.4601,4527.9,4527.3,0.1104]
[1755191601286,0.1104,4528.4,4526.7,0.02209114]
[1755191601584,0.4601,4528.6,4526.3,0.4733]
[1755191601585,0.4601,4528.6,4528.0,0.1104]
[1755191602009,0.4593,4528.9,4528.3,0.1104]
[1755191602010,3.952,4528.8,4528.3,0.1104]
[1755191602221,3.952,4528.8,4528.2,2.20836744]
[1755191602222,3.952,4528.8,4528.5,0.1104]
[1755191602726,3.952,4529.3,4528.9,2.20802286]
[1755191602911,3.952,4529.3,4528.1,2.20839426]
[1755191603119,0.4411,4529.5,4529.3,2.20782706]
[1755191603435,0.002,4529.9,4529.7,2.20765172]
[1755191603833,0.002,4529.9,4529.7,2.31805172]
[1755191604035,0.002,4529.9,4529.7,3.25082823]
[1755191604236,0.002,4529.9,4529.7,3.22875172]
[1755191604742,0.002,4529.9,4529.7,2.31805172]
[1755191607447,0.002,4529.9,4529.7,0.1104]
[1755191607629,0.002,4529.9,4529.7,2.31805172]
[1755191607996,0.002,4529.9,4529.7,0.1104]
[1755191608204,0.9194,4529.8,4528.3,0.4673]
[1755191608500,0.9194,4529.8,4529.3,0.1104]
[1755191608822,0.9174,4529.7,4529.3,0.1104]
[1755191609019,0.4411,4529.6,4529.3,0.1104]
[1755191609238,0.4411,4529.6,4529.3,2.31824504]
[1755191609561,0.4763,4529.5,4528.7,2.20813317]
[1755191609701,0.9174,4529.5,4529.0,0.1104]
[1755191609901,3.552,4529.8,4527.1,3.922]
[1755191609902,0.55,4529.3,4527.1,3.922]
[1755191610235,0.55,4529.1,4528.1,2.20839006]
[1755191610404,0.55,4528.9,4527.8,2.20853047]
[1755191610601,0.55,4528.9,4526.4,4.3634]
[1755191610602,0.55,4528.7,4526.3,0.4673]
[1755191610797,0.55,4528.7,4525.8,4.23434029]
[1755191610798,7.04862798,4528.6,4526.1,0.4673]
[1755191611032,0.1104,4528.1,4527.6,2.20865379]
[1755191611240,0.55,4528.7,4527.4,2.31915936]
[1755191611241,0.9174,4528.0,4527.4,0.1104]
[1755191611459,0.1104,4528.0,4527.5,2.20872446]
[1755191611674,2.20805107,4528.9,4527.7,2.31900468]
[1755191611675,0.1104,4528.3,4527.7,2.31900468]
[1755191611960,0.5515,4528.3,4527.7,0.1104]
[1755191612123,0.1104,4528.3,4526.1,3.0]
[1755191612335,0.4763,4529.2,4527.9,0.1104]
[1755191612514,0.4411,4528.3,4527.9,0.1104]
[1755191612705,0.1104,4528.6,4527.9,0.1104]
[1755191612899,0.1104,4529.0,4528.6,2.2081799]
[1755191613146,0.1104,4529.0,4528.4,2.20823798]
[1755191613329,0.1104,4529.0,4527.4,0.4673]
[1755191613330,3.919,4529.1,4528.7,2.20812255]
[1755191613643,3.919,4529.1,4528.7,2.2080905]
[1755191614014,0.002,4529.8,4529.0,0.1104]
[1755191614220,0.002,4529.8,4527.5,5.20869528]
[1755191614221,0.002,4529.8,4529.5,0.1104]
[1755191614646,0.002,4529.8,4529.7,2.31805172]
[1755191616559,0.002,4529.8,4529.7,2.78535172]
[1755191616868,0.002,4529.8,4529.7,2.31805172]
[1755191617004,0.002,4529.8,4529.7,2.20765172]
[1755191617628,0.002,4529.8,4529.7,2.67126584]
[1755191617924,0.002,4529.8,4529.7,7.00058933]
[1755191618108,1e-08,4529.8,4529.7,7.00058933]
[1755191618328,1e-08,4530.3,4530.2,2.20740806]
[1755191618529,1e-08,4530.3,4530.2,6.14018214]
[1755191618773,1e-08,4530.5,4530.4,2.20731061]
[1755191618980,1e-08,4530.5,4530.4,10.04408371]
[1755191619130,1e-08,4530.5,4530.4,5.67461061]
[1755191619328,1e-08,4530.5,4530.4,6.57661061]
[1755191619528,1e-08,4530.5,4530.4,7.02001061]
[1755191619770,1e-08,4530.5,4530.4,11.05622911]
[1755191620131,3.878697,4533.4,4530.7,2.20716445]
[1755191620132,1e-08,4531.2,4530.7,2.20716445]
[1755191620339,1e-08,4531.2,4531.0,3.0]
[1755191620541,1e-08,4531.2,4531.1,10.02066961]
[1755191620952,1e-08,4531.2,4531.1,6.11766961]
[1755191621296,3.9,4533.6,4531.1,6.11766961]
[1755191621297,1e-08,4531.3,4531.2,5.2069209]
[1755191621435,1e-08,4531.3,4531.2,5.7569209]
[1755191621636,1e-08,4531.3,4531.2,10.0266209]
[1755191622158,1e-08,4531.3,4531.2,5.6742209]
[1755191622469,1e-08,4531.3,4531.2,9.98728683]
[1755191622680,1e-08,4531.3,4531.2,10.89798683]
[1755191625337,1e-08,4531.3,4531.2,6.54558683]
[1755191625665,1e-08,4531.3,4531.2,10.44258683]
[1755191625832,1e-08,4531.3,4531.2,10.88598683]
[1755191626033,1e-08,4531.3,4531.2,6.54558683]
[1755191626274,1e-08,4531.3,4531.2,6.07828683]
[1755191626730,1e-08,4531.3,4531.2,5.2069209]
[1755191626935,1e-08,4531.3,4531.2,5.3173209]
[1755191627967,1e-08,4531.3,4531.2,5.7846209]
[1755191628178,1e-08,4531.3,4531.2,6.1176209]
[1755191628706,1e-08,4531.3,4531.2,6.6676209]
[1755191628857,1e-08,4531.3,4531.2,8.98989646]
[1755191629174,0.002,4532.7,4531.7,2.2066774]
[1755191629540,0.002,4532.7,4532.0,3.0]
[1755191629819,0.4411,4533.7,4533.6,2.2057526]
[1755191629955,0.4411,4533.7,4532.6,0.1104]
[1755191629956,0.9174,4533.7,4533.0,2.20599878]
[1755191630157,0.9174,4533.7,4533.5,2.20577696]
[1755191630370,0.4411,4533.7,4532.5,2.20628792]
[1755191630582,0.4411,4533.7,4532.1,0.4673]
[1755191630583,0.4411,4533.7,4533.6,2.3161526]
[1755191630966,0.9194,4533.7,4533.6,0.1104]
[1755191631190,0.9194,4533.7,4531.1,0.4434]
[1755191631392,1.0278,4533.6,4533.0,0.1104]
[1755191631793,0.4659,4533.5,4533.0,0.1104]
[1755191632002,0.55,4533.4,4533.0,0.1104]
[1755191632174,0.55,4533.4,4532.6,0.1104]
[1755191632175,1.0748,4533.3,4532.6,0.1104]
[1755191632374,0.9644,4533.2,4532.6,0.1104]
[1755191632616,0.9644,4533.1,4532.6,0.1104]
[1755191632912,0.4659,4533.0,4532.9,2.20609322]
[1755191633210,0.9644,4533.6,4532.9,2.20609245]
[1755191633510,0.4659,4533.0,4531.7,3.0]
[1755191633800,0.9644,4533.0,4532.3,2.20635943]
[1755191634156,0.4659,4532.9,4531.7,3.0]
[1755191634486,0.4659,4532.9,4532.7,2.20614479]
[1755191634694,0.9644,4532.8,4532.7,2.20619057]
[1755191635013,0.9644,4532.8,4532.2,2.20638949]
[1755191635193,0.9644,4532.8,4532.4,2.20629722]
[1755191635398,0.9644,4532.7,4532.2,2.20642961]
[1755191635569,0.55,4533.4,4532.3,2.20637596]
[1755191635769,0.9644,4532.6,4531.8,3.875]
[1755191635973,0.9644,4532.6,4531.6,2.2067261]
[1755191636164,1.0159,4533.2,4531.7,2.2066774]
[1755191636478,1.0159,4533.2,4532.5,2.20628344]
[1755191636682,0.4659,4533.1,4531.7,2.2066774]
[1755191637000,0.4659,4533.1,4532.5,2.20624988]
[1755191637178,0.4659,4533.1,4531.5,3.871]
[1755191637179,0.4659,4533.1,4532.4,2.20632875]
[1755191638001,0.4659,4533.1,4532.5,2.20628015]
[1755191638300,0.4659,4533.1,4532.3,2.20638383]
[1755191638469,0.4659,4533.1,4531.7,2.2066774]
[1755191638801,0.4659,4533.1,4532.5,2.20627677]
[1755191639169,0.4659,4533.1,4531.9,2.20658002]
[1755191639402,0.55,4533.4,4532.5,2.20627695]
[1755191639612,0.4659,4533.0,4532.4,2.20633335]
[1755191639912,0.4659,4533.0,4531.6,2.20667815]
[1755191640133,0.4659,4533.0,4532.1,2.2064382]
[1755191640286,0.55,4532.7,4530.2,0.001]
[1755191640469,0.55,4532.5,4530.7,2.20715698]
[1755191640668,0.55,4531.8,4530.2,0.001]
[1755191640915,0.55,4531.6,4530.2,0.001]
[1755191641068,0.55,4531.4,4530.2,0.001]
[1755191641274,0.4659,4531.3,4530.2,0.001]
[1755191641802,0.55,4532.0,4530.9,2.20702438]
[1755191642140,0.55,4531.7,4530.8,2.20711086]
[1755191642339,0.55,4531.5,4530.2,0.001]
[1755191642505,0.9644,4531.6,4530.2,0.001]
[1755191642692,1.5144,4532.2,4530.2,0.001]
[1755191642888,0.55,4532.0,4530.8,2.20707316]
[1755191643126,0.55,4531.8,4530.2,0.001]
[1755191643293,0.1104,4532.2,4531.5,0.1104]
[1755191643493,0.4659,4532.5,4531.6,2.2067261]
[1755191643740,0.4659,4532.5,4532.0,2.31693104]
[1755191643920,0.4659,4533.0,4532.4,2.31672204]
[1755191644088,0.4659,4532.8,4532.4,0.1104]
[1755191644288,0.4659,4532.7,4532.4,0.1104]
[1755191644524,0.4659,4532.7,4531.2,0.47]
[1755191644525,0.9644,4532.6,4531.2,2.2069209]
[1755191644702,0.9644,4532.6,4532.1,0.1104]
[1755191644921,0.4659,4532.5,4532.2,2.20639381]
[1755191645124,0.4659,4532.5,4532.1,2.31687952]
[1755191645438,0.4659,4532.4,4532.1,0.1104]
[1755191645733,0.4659,4532.4,4532.1,2.31688001]
[1755191646415,0.4659,4532.4,4532.1,0.1104]
[1755191646620,0.4659,4532.4,4532.1,2.31687601]
[1755191646790,0.4659,4532.4,4532.1,0.1104]
[1755191646990,0.4659,4532.3,4532.1,0.1104]
[1755191647229,0.4659,4532.3,4530.8,3.843]
[1755191647230,0.9644,4532.2,4531.6,0.1104]
[1755191647994,0.4659,4532.2,4531.6,0.1104]
[1755191648336,0.55,4532.1,4531.1,0.001]
[1755191648637,0.55,4531.6,4531.1,0.001]
[1755191648796,0.9644,4531.5,4531.1,0.001]
[1755191648996,0.4659,4531.4,4531.1,0.001]
[1755191649494,0.55,4531.6,4531.1,0.001]
[1755191649495,4.11359999,4531.3,4531.1,0.001]
[1755191649707,4.57949999,4531.3,4531.1,0.001]
[1755191651538,1.0159,4531.2,4531.1,0.001]
[1755191651750,4.77399999,4531.2,4531.1,0.001]
[1755191652047,4.22399999,4531.2,4531.1,0.001]
[1755191652403,4.11359999,4531.2,4531.1,0.001]
[1755191654258,4.57949999,4531.2,4531.1,0.001]
[1755191654600,4.11359999,4531.2,4531.1,0.001]
[1755191655009,4.57949999,4531.2,4531.1,0.1114]
[1755191655213,5.12949999,4531.2,4531.1,0.001]
[1755191655440,4.11159999,4530.7,4529.2,0.001]
[1755191655750,9.43899999,4530.6,4529.9,0.1104]
[1755191655944,8.97309999,4530.6,4529.9,0.1104]
[1755191656148,4.57749999,4530.5,4529.9,0.1104]
[1755191656335,4.11159999,4530.5,4530.0,2.20748712]
[1755191656531,4.11159999,4530.5,4530.2,2.20838628]
[1755191656849,4.11159999,4530.5,4530.4,2.20731061]
[1755191657052,4.11159999,4530.5,4530.4,3.17391061]
[1755191657273,0.4659,4532.2,4530.8,2.20707338]
[1755191657274,3.809,4531.6,4530.8,2.20707338]
[1755191657475,3.809,4531.7,4531.3,0.1104]
[1755191657632,4.57749999,4531.6,4531.3,0.1104]
[1755191657831,4.11159999,4531.6,4531.3,0.1104]
[1755191658262,3.806,4531.7,4531.3,0.607]
[1755191658580,4.11159999,4532.5,4531.3,0.607]
[1755191658581,0.1104,4532.3,4532.1,2.20648086]
[1755191658735,0.1104,4532.3,4531.3,0.1104]
[1755191658942,0.1104,4532.3,4532.2,2.20643396]
[1755191659246,4.7704,4532.3,4531.0,2.20700928]
[1755191659452,2.20653673,4532.0,4530.3,0.4966]
[1755191659656,6.47829513,4532.3,4531.2,2.20691401]
[1755191659958,3.0,4532.2,4531.2,2.20690805]
[1755191660133,3.552,4532.6,4531.1,6.01393054]
[1755191660333,3.552,4532.6,4531.0,0.4966]
[1755191660334,0.55,4532.4,4531.0,0.4966]
[1755191660555,3.0,4532.1,4530.7,2.20715997]
[1755191660756,0.55,4532.1,4530.6,3.806]
[1755191660975,0.4679,4532.6,4530.7,0.70207164]
[1755191661144,0.4679,4532.6,4530.8,0.9666]
[1755191661145,0.002,4532.6,4530.8,0.9666]
[1755191661338,0.002,4532.6,4532.1,2.20647914]
[1755191661539,0.002,4532.6,4532.5,2.20628792]
[1755191661733,0.002,4532.6,4532.5,6.91958792]
[1755191661937,0.002,4532.6,4532.5,7.84818279]
[1755191662161,0.002,4532.6,4532.5,4.02618279]
[1755191662472,0.002,4532.6,4532.5,7.84818279]
[1755191662678,0.002,4532.6,4532.5,8.05818279]
[1755191664472,0.002,4532.6,4532.5,8.04818279]
[1755191665246,0.002,4532.6,4532.5,2.89018792]
[1755191665453,0.002,4532.6,4532.5,2.41628792]
[1755191665838,0.4405,4532.6,4532.5,0.21]
[1755191666033,0.8982,4532.6,4531.3,3.809]
[1755191666237,0.8982,4532.6,4531.8,2.20662189]
[1755191666449,0.8982,4532.6,4531.9,2.20657961]
[1755191666674,0.8982,4532.6,4531.4,3.822]
[1755191666877,0.4405,4532.6,4531.4,0.01]
[1755191667081,0.002,4532.6,4531.5,3.809]
[1755191667251,0.002,4532.6,4532.1,2.20643801]
[1755191667654,0.002,4532.6,4532.2,2.20642767]
[1755191667863,0.002,4532.6,4531.6,0.01]
[1755191667864,0.002,4532.6,4532.0,2.20648532]
[1755191668176,0.002,4532.6,4531.7,4.2809]
[1755191668377,0.002,4532.6,4531.7,1.1268484]
[1755191668540,0.002,4532.6,4532.5,2.20628792]
[1755191668972,0.002,4532.6,4532.5,6.94065079]
[1755191669141,0.002,4532.6,4532.5,7.02898792]
[1755191669341,1e-08,4532.6,4532.5,7.02898792]
[1755191669765,1e-08,4532.6,4532.5,7.22898792]
[1755191669940,1e-08,4532.6,4532.5,8.1834149]
[1755191670877,1e-08,4532.6,4532.5,4.3784149]
[1755191671078,1e-08,4532.6,4532.5,8.1794149]
[1755191671240,1e-08,4532.6,4532.5,4.2680149]
[1755191671579,1e-08,4532.6,4532.5,8.1784149]
[1755191671785,1e-08,4532.9,4532.7,5.20619057]
[1755191671987,1e-08,4532.9,4532.7,0.2]
[1755191672236,0.8962,4532.8,4532.7,0.2]
[1755191672768,1e-08,4532.9,4532.7,0.3104]
[1755191673120,0.4385,4532.8,4532.7,0.3104]
[1755191673271,1e-08,4532.9,4532.7,0.1104]
[1755191673870,1e-08,4532.9,4531.7,2.20664041]
[1755191673871,0.8962,4532.8,4531.7,2.20664041]
[1755191674102,0.1104,4532.6,4532.0,0.1104]
[1755191674294,0.55,4532.5,4531.9,0.2]
[1755191674501,0.4385,4532.4,4531.9,0.2]
[1755191674712,0.8962,4532.3,4531.9,0.2]
[1755191675027,0.4385,4532.2,4531.9,0.2]
[1755191675390,0.1104,4532.5,4531.9,0.2]
[1755191675590,3.0,4531.9,4530.2,0.001]
[1755191675936,0.55,4532.0,4530.2,0.001]
[1755191675937,0.55,4531.3,4530.3,2.20735885]
[1755191676083,0.55,4531.3,4530.2,2.20840274]
[1755191676284,3.815,4531.5,4530.2,0.24401435]
[1755191676516,3.815,4531.5,4530.5,2.20724323]
[1755191676683,6.02177867,4531.5,4530.2,2.20837067]
[1755191676883,3.815,4531.5,4530.3,0.02207359]
[1755191677130,2.75633931,4532.4,4531.4,2.20681151]
[1755191677431,3.814,4532.5,4530.9,2.20706702]
[1755191677639,3.814,4532.5,4531.1,2.20696961]
[1755191677802,3.814,4532.5,4531.0,0.7379467]
[1755191677803,3.814,4532.5,4531.9,2.20656781]
[1755191678006,1e-08,4532.9,4531.6,0.4334]
[1755191678199,1e-08,4532.9,4532.7,2.20618719]
[1755191678642,1e-08,4532.9,4531.6,3.0]
[1755191678935,1e-08,4532.9,4532.8,2.20614189]
[1755191679148,1e-08,4532.9,4532.8,2.2282033]
[1755191679429,1e-08,4532.9,4532.8,3.1355033]
[1755191679629,1e-08,4532.9,4532.8,3.11344189]
[1755191679934,1e-08,4532.9,4532.8,2.63954189]
[1755191680290,1e-08,4532.9,4532.8,2.20614189]
[1755191680491,1e-08,4532.9,4532.8,6.44854189]
[1755191680691,1e-08,4532.9,4532.8,6.92244189]
[1755191681005,1e-08,4532.9,4532.8,2.20614189]
[1755191681386,1e-08,4532.9,4532.8,2.64737795]
[1755191682275,1e-08,4532.9,4532.8,2.20614189]
[1755191682544,1e-08,4532.9,4532.1,2.20647906]
[1755191682545,1e-08,4532.9,4531.1,0.9073]
[1755191682688,1e-08,4532.9,4531.7,3.802]
[1755191682892,1e-08,4532.9,4532.8,2.20614189]
[1755191683141,1e-08,4532.9,4532.8,3.1355033]
[1755191683436,1e-08,4532.9,4532.8,6.1355033]
[1755191683601,1e-08,4533.2,4532.9,5.20609322]
[1755191683808,1e-08,4533.2,4533.1,5.20599589]
[1755191684021,1e-08,4533.2,4533.1,6.11329589]
[1755191684322,0.002,4533.9,4533.8,2.2056553]
[1755191684634,1e-08,4534.0,4533.9,5.20560665]
[1755191685000,1e-08,4534.0,4533.9,6.00960665]
[1755191685197,1e-08,4534.0,4533.9,2.20560665]
[1755191685424,1e-08,4534.0,4533.7,2.20565677]
[1755191685611,1e-08,4534.0,4533.9,2.31600665]
[1755191685821,1e-08,4534.0,4533.9,6.11900665]
[1755191686199,1e-08,4534.0,4533.9,6.00860665]
[1755191686537,1e-08,4534.0,4533.9,7.8477361]
[1755191686841,1e-08,4534.0,4533.9,4.0447361]
[1755191687136,1e-08,4534.0,4533.9,7.8457361]
[1755191687573,1e-08,4534.0,4533.9,4.0447361]
[1755191687857,1e-08,4534.0,4533.9,6.00560665]
[1755191688157,1e-08,4534.0,4533.9,6.00160665]
[1755191688725,1e-08,4534.0,4533.9,2.20560665]
[1755191688929,1e-08,4534.0,4533.9,6.00060665]
[1755191690073,1e-08,4534.0,4533.9,6.43400665]
[1755191690369,1e-08,4534.0,4533.9,7.29797682]
[1755191690872,1e-08,4534.0,4533.9,2.20560665]
[1755191691037,1e-08,4534.0,4533.9,5.99660665]
[1755191691428,1e-08,4534.0,4533.1,0.4739]
[1755191691755,1e-08,4534.0,4533.2,3.788]
[1755191691961,1e-08,4534.0,4533.5,2.20576542]
[1755191692129,1e-08,4534.0,4531.6,2.66249929]
[1755191692335,0.9419,4533.9,4533.0,2.20603537]
[1755191692860,0.9419,4533.9,4533.1,2.20598973]
[1755191693068,0.9419,4533.9,4532.7,3.788]
[1755191693230,0.9419,4533.9,4533.3,2.20589062]
[1755191693428,0.9419,4533.9,4533.4,2.20584047]
[1755191693732,0.9419,4533.8,4533.3,2.20589757]
[1755191693929,0.4532,4533.8,4533.0,3.788]
[1755191694145,1e-08,4534.0,4533.0,3.788]
[1755191694146,1e-08,4534.0,4533.1,0.02205995]
[1755191694373,1e-08,4534.0,4533.6,2.20574737]
[1755191694663,1e-08,4534.0,4533.3,3.788]
[1755191694864,1e-08,4534.0,4533.7,2.20570044]
[1755191695171,1e-08,4534.0,4533.8,2.20561754]
[1755191698483,1e-08,4534.0,4533.9,2.31600665]
[1755191700390,1e-08,4534.0,4533.9,2.33806271]
[1755191700533,1e-08,4534.0,4533.9,4.00833856]
[1755191700737,1e-08,4534.0,4533.9,7.00833856]
[1755191700966,1e-08,4534.0,4533.9,7.0966825]
[1755191702284,1e-08,4534.0,4533.9,9.9360825]
[1755191702485,1e-08,4534.0,4533.9,10.8836825]
[1755191702888,1e-08,4534.0,4533.9,2.31600665]
[1755191703096,1e-08,4534.0,4533.9,6.10300665]
[1755191703455,1e-08,4534.0,4533.4,2.20584777]
[1755191703456,1e-08,4534.0,4533.6,3.786]
[1755191703658,0.45320001,4534.0,4533.6,5.99170507]
[1755191703852,1e-08,4534.0,4533.9,2.20560665]
[1755191704046,1e-08,4534.0,4533.9,5.99160665]
[1755191704597,1e-08,4534.0,4533.8,2.20564313]
[1755191704749,1e-08,4534.0,4533.7,5.99168967]
[1755191704964,0.45320001,4534.0,4533.7,5.99168967]
[1755191705189,0.45320001,4534.0,4533.7,3.786]
[1755191705379,0.9419,4533.9,4533.3,0.001]
[1755191705790,3.147524,4533.9,4533.3,0.001]
[1755191705994,2.20581474,4533.5,4533.3,0.001]
[1755191706210,0.55,4533.8,4533.3,0.001]
[1755191706412,1e-08,4534.0,4533.3,0.001]
[1755191706568,1e-08,4534.0,4533.3,0.38190604]
[1755191706778,1e-08,4534.0,4533.9,2.20560665]
[1755191707213,1e-08,4534.0,4533.3,0.38190604]
[1755191707381,1e-08,4534.0,4533.5,3.786]
[1755191707569,1e-08,4534.0,4533.9,2.20560665]
[1755191707766,1e-08,4534.0,4533.5,5.99176559]
[1755191707996,1e-08,4534.0,4533.6,2.22779674]